bitfinex/quotes_SOLUSD_20241127
["timestamp","ask_amount","ask_price","bid_price","bid_amount"]
[1732711018383,13.2416872,233.55,233.52,20.0]
[1732711018985,13.2416872,233.55,233.51,23.776884]
[1732711019765,13.2416872,233.53,233.44,13.2416872]
[1732711019976,13.2416872,233.51,233.42,13.2416872]
[1732711020176,1.06810207,233.5,233.42,13.2416872]
[1732711020378,13.2416872,233.51,233.42,13.2416872]
[1732711020952,1.06810207,233.59,233.41,2.93589919]
[1732711020953,1.06802955,233.5,233.44,13.2416872]
[1732711021154,13.2416872,233.51,233.45,20.0]
[1732711021688,1.06808134,233.5,233.45,20.0]
[1732711022256,13.2416872,233.51,233.45,20.0]
[1732711024094,13.2416872,233.47,233.34,13.2416872]
[1732711024385,1.06843093,233.46,233.36,13.2416872]
[1732711024584,13.2416872,233.47,233.4,13.2416872]
[1732711024792,13.2416872,233.49,233.4,13.2416872]
[1732711024968,13.2416872,233.51,233.44,13.2416872]
[1732711025161,13.2416872,233.51,233.4,4.2843]
[1732711025162,13.2416872,233.55,233.46,13.2416872]
[1732711025367,13.2416872,233.55,233.5,23.776884]
[1732711025671,13.2416872,233.53,233.5,23.776884]
[1732711025889,13.2416872,233.53,233.52,20.0]
[1732711026391,13.2416872,233.53,233.46,20.0]
[1732711026592,13.2416872,233.49,233.46,20.0]
[1732711027090,13.2416872,233.49,233.4,13.2416872]
[1732711027291,13.2416872,233.43,233.36,13.2416872]
[1732711027462,13.2416872,233.45,233.36,13.2416872]
[1732711027656,13.2416872,233.48,233.38,13.2416872]
[1732711028294,5.0,233.58,233.38,13.2416872]
[1732711028295,13.2416872,233.46,233.38,13.2416872]
[1732711028473,13.2416872,233.46,233.32,0.42591196]
[1732711028674,13.2416872,233.46,233.37,13.2416872]
[1732711029761,13.2416872,233.46,233.41,43.776884]
[1732711029965,13.2416872,233.44,233.41,20.0]
[1732711030379,13.2416872,233.44,233.38,23.776884]
[1732711030583,13.2416872,233.44,233.37,13.2416872]
[1732711030584,13.2416872,233.42,233.33,13.2416872]
[1732711030966,13.2416872,233.42,233.35,13.2416872]
[1732711031787,13.2416872,233.44,233.38,20.0]
[1732711032287,1.06840634,233.43,233.38,20.0]
[1732711032696,1.06840634,233.43,233.33,13.2416872]
[1732711032697,13.2416872,233.42,233.33,13.2416872]
[1732711033004,1.06855332,233.41,233.34,23.776884]
[1732711033379,13.2416872,233.42,233.34,23.776884]
[1732711034176,13.2416872,233.42,233.37,20.0]
[1732711034983,13.2416872,233.4,233.37,20.0]
[1732711036900,1.06857613,233.39,233.34,20.0]
[1732711037076,13.2416872,233.36,233.29,13.2416872]
[1732711037281,13.2416872,233.4,233.32,13.2416872]
[1732711037579,13.2416872,233.38,233.3,13.2416872]
[1732711038093,1.06870124,233.46,233.27,4.2868]
[1732711038094,13.2416872,233.44,233.36,13.2416872]
[1732711038286,1.06850537,233.43,233.39,20.0]
[1732711039104,13.2416872,233.44,233.39,20.0]
[1732711039401,1.06843835,233.51,233.29,0.42637423]
[1732711039402,13.2416872,233.42,233.38,20.0]
[1732711039784,13.2416872,233.46,233.39,23.776884]
[1732711040380,13.2416872,233.44,233.39,23.776884]
[1732711040586,13.2416872,233.42,233.35,20.0]
[1732711040801,13.2416872,233.4,233.39,20.0]
[1732711041305,13.2416872,233.42,233.39,20.0]
[1732711043101,13.2416872,233.4,233.39,20.0]
[1732711043301,13.2416872,233.4,233.36,23.776884]
[1732711043504,13.2416872,233.4,233.35,20.0]
[1732711043720,13.2416872,233.36,233.28,13.2416872]
[1732711044090,13.2416872,233.34,233.27,2.46663157]
[1732711044298,13.2416872,233.34,233.26,13.2416872]
[1732711045000,13.2416872,233.34,233.26,17.5286872]
[1732711045198,13.2416872,233.37,233.3,23.776884]
[1732711045404,1.06872236,233.36,233.28,23.776884]
[1732711045713,1.06872236,233.36,233.31,20.0]
[1732711046384,13.2416872,233.35,233.31,20.0]
[1732711046712,1.06883126,233.34,233.31,20.0]
[1732711049215,1.06883126,233.34,233.28,23.776884]
[1732711049912,13.2416872,233.29,233.22,24.20381495]
[1732711050314,13.2416872,233.28,233.22,0.42693095]
[1732711050514,1.06883126,233.34,233.22,0.42693095]
[1732711050515,13.2416872,233.29,233.22,0.42693095]
[1732711051013,13.2416872,233.3,233.22,13.66861815]
[1732711051202,13.2416872,233.3,233.26,20.0]
[1732711052216,13.2416872,233.31,233.24,13.2416872]
[1732711052592,13.2416872,233.32,233.24,13.2416872]
[1732711052813,13.2416872,233.31,233.24,13.2416872]
[1732711054894,13.2416872,233.33,233.26,13.2416872]
[1732711055099,13.2416872,233.35,233.28,13.2416872]
[1732711056399,5.0,233.4,233.26,13.2416872]
[1732711056400,13.2416872,233.33,233.26,13.2416872]
[1732711057017,13.2416872,233.33,233.27,23.776884]
[1732711057525,13.2416872,233.35,233.27,23.776884]
[1732711057707,13.2416872,233.37,233.3,13.2416872]
[1732711057905,1.06880293,233.36,233.3,13.2416872]
[1732711059299,2.52503605,233.51,233.27,23.776884]
[1732711059300,14.31048586,233.43,233.35,13.2416872]
[1732711059699,14.31048586,233.43,233.36,23.776884]
[1732711059926,1.06879866,233.43,233.37,13.2416872]
[1732711060113,1.06841301,233.44,233.37,13.2416872]
[1732711061204,1.06841301,233.44,233.36,23.776884]
[1732711061404,1.06841301,233.44,233.36,37.0185712]
[1732711062602,13.2416872,233.43,233.34,37.0185712]
[1732711062797,13.2416872,233.41,233.33,23.776884]
[1732711063001,1.0685926,233.4,233.33,23.776884]
[1732711063626,13.2416872,233.39,233.33,23.776884]
[1732711063937,13.2416872,233.39,233.32,13.2416872]
[1732711064303,13.2416872,233.39,233.33,23.776884]
[1732711064619,1.06860463,233.38,233.3,13.2416872]
[1732711064815,13.2416872,233.39,233.3,13.2416872]
[1732711065017,1.06863349,233.38,233.3,13.2416872]
[1732711065926,1.06863349,233.38,233.31,23.776884]
[1732711066812,13.2416872,233.37,233.31,23.776884]
[1732711067019,13.2416872,233.37,233.29,23.776884]
[1732711067719,1.06871274,233.36,233.29,23.776884]
[1732711068032,13.2416872,233.35,233.29,23.776884]
[1732711069630,1.06875046,233.34,233.27,23.776884]
[1732711069818,13.2416872,233.35,233.27,23.776884]
[1732711070019,13.2416872,233.35,233.28,13.2416872]
[1732711070231,13.2416872,233.35,233.29,23.776884]
[1732711072707,13.2416872,233.33,233.26,2.52054911]
[1732711072911,13.2416872,233.31,233.22,17.5293872]
[1732711073109,1.06907142,233.3,233.22,17.5293872]
[1732711073313,1.06907142,233.3,233.22,13.2416872]
[1732711073928,13.2416872,233.35,233.26,13.2416872]
[1732711074117,13.2416872,233.37,233.29,23.776884]
[1732711074324,1.06877807,233.36,233.29,23.776884]
[1732711075610,13.2416872,233.39,233.3,13.2416872]
[1732711075946,1.06869905,233.4,233.32,13.2416872]
[1732711076113,13.2416872,233.52,233.36,13.2416872]
[1732711076114,14.31027135,233.45,233.36,13.2416872]
[1732711076316,1.06844148,233.44,233.37,32.24208197]
[1732711076542,8.46519797,233.46,233.37,32.24208197]
[1732711076543,1.06836835,233.45,233.37,32.24208197]
[1732711077424,8.46519797,233.44,233.37,32.24208197]
[1732711078547,13.22834769,233.44,233.37,23.776884]
[1732711080414,13.22834769,233.4,233.32,13.22834769]
[1732711080627,13.22834769,233.44,233.36,13.22834769]
[1732711080937,1.06839723,233.43,233.36,13.22834769]
[1732711081459,13.22834769,233.42,233.34,37.00523169]
[1732711081822,13.22834769,233.42,233.33,4.71220879]
[1732711081823,13.22834769,233.38,233.31,23.776884]
[1732711082029,13.22834769,233.36,233.31,23.776884]
[1732711083439,13.22834769,233.36,233.3,2.50966578]
[1732711084027,1.06870915,233.35,233.28,13.22834769]
[1732711084218,13.22834769,233.36,233.28,13.22834769]
[1732711084623,13.22834769,233.36,233.29,23.776884]
[1732711084945,1.06873291,233.35,233.29,23.776884]
[1732711085150,13.22834769,233.36,233.29,23.776884]
[1732711086020,13.22834769,233.36,233.29,28.063284]
[1732711086222,13.22834769,233.38,233.31,23.776884]
[1732711087244,13.22834769,233.4,233.33,23.776884]
[1732711087547,13.22834769,233.38,233.31,23.776884]
[1732711088734,13.22834769,233.4,233.33,23.776884]
[1732711090426,1.06853476,233.39,233.32,23.776884]
[1732711090842,13.22834769,233.4,233.32,23.776884]
[1732711092323,13.22834769,233.42,233.34,13.22834769]
[1732711092524,13.22834769,233.42,233.35,23.776884]
[1732711094548,13.22834769,233.42,233.35,28.062184]
[1732711094755,13.22834769,233.44,233.35,28.062184]
[1732711095516,1.06843023,233.49,233.35,28.062184]
[1732711095719,13.22834769,233.44,233.37,23.776884]
[1732711095955,1.06842508,233.43,233.36,23.776884]
[1732711096125,13.22834769,233.42,233.35,43.776884]
[1732711097450,13.22834769,233.4,233.35,43.776884]
[1732711097634,13.22834769,233.38,233.33,43.776884]
[1732711097952,13.22834769,233.38,233.31,23.776884]
[1732711099126,13.22834769,233.38,233.31,28.062884]
[1732711100742,13.22834769,233.38,233.3,15.70666972]
[1732711100743,13.22834769,233.34,233.25,4.2872]
[1732711100949,1.06873632,233.39,233.25,4.2872]
[1732711101136,13.22834769,233.36,233.28,13.22834769]
[1732711102049,13.22834769,233.36,233.29,23.776884]
[1732711104357,8.47230819,233.36,233.27,12.75910819]
[1732711104541,8.47230819,233.34,233.28,23.776884]
[1732711104729,1.06886674,233.39,233.27,23.776884]
[1732711104931,8.47230819,233.36,233.29,23.776884]
[1732711108160,1.06867485,233.41,233.32,8.47230819]
[1732711108353,8.47230819,233.4,233.32,8.47230819]
[1732711108825,8.47230819,233.4,233.31,4.2861]
[1732711109258,8.47230819,233.38,233.33,20.0]
[1732711109462,8.47230819,233.38,233.31,23.776884]
[1732711109955,8.47230819,233.36,233.28,23.776884]
[1732711110457,8.47230819,233.36,233.29,4.2865]
[1732711110844,8.47230819,233.36,233.3,23.776884]
[1732711112340,8.47230819,233.32,233.24,2.5355511]
[1732711112546,8.47230819,233.32,233.26,23.776884]
[1732711114057,8.47230819,233.32,233.24,28.064284]
[1732711114264,8.47230819,233.32,233.26,23.776884]
[1732711114561,8.47230819,233.41,233.32,23.776884]
[1732711114759,8.47230819,233.41,233.34,23.776884]
[1732711114933,8.47230819,233.43,233.36,23.776884]
[1732711115128,8.47230819,233.45,233.38,23.776884]
[1732711115362,8.47230819,233.45,233.38,24.20284881]
[1732711116469,13.22777576,233.44,233.38,24.20284881]
[1732711117141,13.22777576,233.44,233.38,23.776884]
[1732711118548,13.22777576,233.4,233.33,0.42605702]
[1732711118856,1.06847956,233.49,233.39,13.22777576]
[1732711119057,1.06847956,233.49,233.41,13.22777576]
[1732711119058,13.22777576,233.49,233.41,13.22777576]
[1732711119233,13.22777576,233.51,233.43,13.22777576]
[1732711119429,13.22777576,233.51,233.44,0.42535559]
[1732711119952,13.22777576,233.49,233.42,28.060784]
[1732711120452,1.06814449,233.58,233.39,13.22777576]
[1732711120453,13.22777576,233.46,233.39,13.22777576]
[1732711120755,13.22777576,233.46,233.4,23.776884]
[1732711120938,13.22777576,233.46,233.41,20.0]
[1732711121135,13.22777576,233.46,233.42,23.776884]
[1732711121459,20.0,233.55,233.42,24.20274144]
[1732711121640,13.22777576,233.49,233.42,24.20274144]
[1732711122742,13.22777576,233.47,233.42,24.20274144]
[1732711122947,13.22777576,233.47,233.42,23.776884]
[1732711124373,13.3808,233.6,233.46,13.22777576]
[1732711124374,1.06805761,233.59,233.46,13.22777576]
[1732711124578,1.06805761,233.59,233.47,0.42514524]
[1732711124579,13.22777576,233.54,233.47,0.42514524]
[1732711124878,13.22777576,233.5,233.42,2.458393]
[1732711125055,13.22777576,233.48,233.44,23.776884]
[1732711125773,13.22777576,233.5,233.45,0.42557095]
[1732711126074,13.22777576,233.52,233.44,37.00465976]
[1732711126252,13.22777576,233.52,233.44,41.28825976]
[1732711130378,13.22777576,233.52,233.46,23.776884]
[1732711132353,1.06783858,233.62,233.49,20.0]
[1732711132558,13.22777576,233.57,233.5,23.776884]
[1732711133651,13.22777576,233.57,233.5,28.059384]
[1732711133852,13.22777576,233.55,233.5,23.776884]
[1732711134054,13.22777576,233.53,233.45,28.060184]
[1732711134255,13.22777576,233.49,233.43,4.2838]
[1732711134462,13.22777576,233.49,233.43,6.73236111]
[1732711135578,13.22777576,233.49,233.44,28.060484]
[1732711135775,13.22777576,233.51,233.44,28.060484]
[1732711136154,13.22777576,233.51,233.44,28.48581882]
[1732711136370,8.46096311,233.52,233.44,28.48581882]
[1732711139584,1.06793078,233.6,233.48,20.0]
[1732711139760,33.84385244,233.64,233.49,23.776884]
[1732711139761,8.46096311,233.55,233.49,23.776884]
[1732711140166,8.46096311,233.55,233.49,24.20174089]
[1732711140772,8.46096311,233.56,233.49,32.662704]
[1732711141262,8.46096311,233.57,233.51,23.776884]
[1732711141465,8.46096311,233.57,233.51,24.20155328]
[1732711141672,8.46096311,233.57,233.51,28.48385328]
[1732711142783,0.5143397,233.65,233.57,23.776884]
[1732711143086,0.5143397,233.65,233.6,23.776884]
[1732711144470,8.97530281,233.65,233.6,23.776884]
[1732711144784,8.97530281,233.65,233.55,0.42405216]
[1732711144785,8.46096311,233.63,233.55,0.42405216]
[1732711144986,8.46096311,233.63,233.55,28.48253616]
[1732711145482,0.5143397,233.65,233.53,23.776884]
[1732711145483,8.46096311,233.61,233.53,23.776884]
[1732711145865,8.46096311,233.61,233.53,28.058884]
[1732711146059,8.46096311,233.61,233.54,0.42456348]
[1732711146254,13.21044309,233.61,233.54,0.42456348]
[1732711149013,13.21044309,233.57,233.52,23.776884]
[1732711149162,13.21044309,233.55,233.47,13.21044309]
[1732711150395,13.21044309,233.55,233.48,28.48482022]
[1732711150877,13.21044309,233.53,233.46,2.47765379]
[1732711151194,13.21044309,233.53,233.48,20.0]
[1732711151565,13.21044309,233.57,233.5,20.0]
[1732711151764,13.21044309,233.57,233.51,0.42483956]
[1732711152393,13.21044309,233.57,233.51,24.20172356]
[1732711152869,13.21044309,233.57,233.51,23.776884]
[1732711153190,13.21044309,233.53,233.48,20.0]
[1732711153390,13.21044309,233.53,233.49,23.776884]
[1732711153995,13.21044309,233.55,233.52,20.0]
[1732711155663,13.21044309,233.53,233.52,20.0]
[1732711157388,13.21044309,233.55,233.52,20.0]
[1732711157963,13.21044309,233.53,233.48,20.0]
[1732711159475,13.21044309,233.51,233.44,2.52404183]
[1732711159783,13.21044309,233.49,233.41,17.49474309]
[1732711159996,13.21044309,233.47,233.39,17.49494309]
[1732711160791,13.21044309,233.47,233.39,19.94275829]
[1732711161187,13.21044309,233.45,233.4,20.0]
[1732711161390,13.21044309,233.41,233.34,4.2855]
[1732711161796,13.21044309,233.41,233.34,6.75341043]
[1732711161998,13.21044309,233.39,233.31,17.49634309]
[1732711162371,13.21044309,233.37,233.3,4.2862]
[1732711163682,13.21044309,233.37,233.29,19.98515153]
[1732711164303,5.0,233.45,233.29,19.98515153]
[1732711164304,13.21044309,233.35,233.29,2.48830844]
[1732711164504,13.21044309,233.35,233.28,4.2866]
[1732711164680,13.21044309,233.37,233.29,13.21044309]
[1732711165573,13.21044309,233.37,233.32,20.0]
[1732711166092,23.776884,233.46,233.32,20.0]
[1732711166298,13.21044309,233.38,233.29,17.49684309]
[1732711167584,1.06868554,233.37,233.29,17.49684309]
[1732711167774,13.21044309,233.36,233.29,17.49684309]
[1732711168697,13.21044309,233.36,233.29,13.21044309]
[1732711169500,13.21044309,233.36,233.29,17.49694309]
[1732711169678,13.21044309,233.38,233.31,13.21044309]
[1732711170905,13.21044309,233.4,233.31,13.21044309]
[1732711171089,1.06870617,233.42,233.34,13.21044309]
[1732711171090,13.21044309,233.42,233.34,13.21044309]
[1732711171697,13.21044309,233.42,233.34,17.49594309]
[1732711177111,1.06846087,233.48,233.36,13.21044309]
[1732711177112,13.21044309,233.44,233.36,13.21044309]
[1732711177611,13.21044309,233.46,233.38,13.21044309]
[1732711177793,13.21044309,233.48,233.4,13.21044309]
[1732711178417,13.21044309,233.5,233.42,13.21044309]
[1732711178914,1.06812064,233.49,233.42,13.21044309]
[1732711179290,13.21044309,233.5,233.42,13.21044309]
[1732711179696,13.21044309,233.48,233.42,13.21044309]
[1732711181988,13.21044309,233.48,233.42,17.49454309]
[1732711182404,13.21044309,233.5,233.42,13.21044309]
[1732711183001,13.21044309,233.5,233.44,13.21044309]
[1732711184016,13.21044309,233.5,233.44,17.49404309]
[1732711184512,1.06812033,233.58,233.45,8.46188952]
[1732711184513,20.0,233.56,233.45,8.46188952]
[1732711184694,1.06812033,233.58,233.45,8.46188952]
[1732711184695,8.46188952,233.53,233.45,8.46188952]
[1732711185608,8.46188952,233.53,233.45,8.88722477]
[1732711186821,8.46188952,233.51,233.44,6.74376893]
[1732711189015,8.46188952,233.51,233.45,28.060384]
[1732711190200,20.0,233.59,233.45,28.060384]
[1732711190410,8.46188952,233.52,233.45,36.52227352]
[1732711191212,8.46188952,233.52,233.45,28.060384]
[1732711191414,8.46188952,233.48,233.38,8.88728536]
[1732711191623,8.46188952,233.46,233.39,8.46188952]
[1732711191994,8.46188952,233.46,233.4,0.42582149]
[1732711192420,8.46188952,233.46,233.4,4.71012149]
[1732711193035,8.46188952,233.46,233.4,4.2843]
[1732711193316,8.46188952,233.46,233.38,12.74648952]
[1732711194305,13.22756826,233.46,233.39,20.0]
[1732711194727,13.22756826,233.46,233.39,23.776884]
[1732711196610,13.22756826,233.46,233.4,4.2844]
[1732711199011,13.22756826,233.46,233.38,13.22756826]
[1732711199335,13.22756826,233.42,233.34,4.2855]
[1732711201123,13.22756826,233.42,233.35,13.22756826]
[1732711201319,13.22756826,233.42,233.35,17.51276826]
[1732711204343,13.22756826,233.46,233.37,13.22756826]
[1732711204541,13.22756826,233.46,233.39,13.22756826]
[1732711205525,13.22756826,233.44,233.38,4.2847]
[1732711205724,13.22756826,233.44,233.37,13.22756826]
[1732711205919,13.22756826,233.42,233.36,20.0]
[1732711206630,13.22756826,233.44,233.36,20.0]
[1732711206934,13.22756826,233.47,233.38,13.22756826]
[1732711207231,13.22756826,233.47,233.39,0.42593082]
[1732711207431,13.22756826,233.48,233.41,37.51186826]
[1732711208012,13.22756826,233.48,233.4,24.2844]
[1732711208719,13.22756826,233.46,233.4,24.2844]
[1732711209734,13.22756826,233.48,233.42,20.0]
[1732711209940,13.22756826,233.5,233.43,0.4256335]
[1732711210125,13.22756826,233.5,233.43,13.65320176]
[1732711210438,13.22756826,233.5,233.44,23.776884]
[1732711211520,13.22756826,233.5,233.44,28.060584]
[1732711212040,13.22756826,233.5,233.43,23.776884]
[1732711214050,1.06817731,233.56,233.41,13.22756826]
[1732711214051,13.22756826,233.47,233.41,13.22756826]
[1732711214241,13.22756826,233.47,233.4,4.2844]
[1732711214544,13.22756826,233.52,233.4,4.2844]
[1732711214545,8.46563379,233.46,233.4,4.2844]
[1732711215739,8.46563379,233.46,233.41,23.776884]
[1732711216043,1.06819831,233.51,233.41,4.2843]
[1732711216044,8.46563379,233.47,233.41,4.2843]
[1732711217522,1.06814105,233.55,233.42,8.46563379]
[1732711217742,8.46563379,233.52,233.45,32.24251779]
[1732711218142,8.46563379,233.52,233.45,36.52591779]
[1732711219544,8.46563379,233.52,233.45,28.060284]
[1732711220057,8.46563379,233.51,233.45,28.060284]
[1732711221628,8.46563379,233.52,233.45,28.060284]
[1732711221829,8.46563379,233.52,233.46,4.70849157]
[1732711222038,1.06790271,233.59,233.47,23.776884]
[1732711222353,8.46563379,233.54,233.47,23.776884]
[1732711222521,8.46563379,233.54,233.48,0.42504702]
[1732711222718,1.06779063,233.62,233.49,23.776884]
[1732711222945,8.46563379,233.57,233.5,0.42480441]
[1732711223135,1.06764814,233.63,233.53,8.46563379]
[1732711223340,8.46563379,233.6,233.54,24.20133739]
[1732711223742,8.46563379,233.6,233.54,28.48303739]
[1732711224096,8.46563379,233.61,233.54,36.94867118]
[1732711224738,8.46563379,233.6,233.54,28.48303739]
[1732711225152,8.46563379,233.61,233.54,36.94867118]
[1732711228462,8.46563379,233.57,233.5,0.42438259]
[1732711228651,8.46563379,233.55,233.5,4.70698259]
[1732711229864,8.46563379,233.55,233.5,24.70698259]
[1732711230038,1.06767441,233.63,233.5,24.70698259]
[1732711230243,8.46563379,233.59,233.52,8.46563379]
[1732711230566,8.46563379,233.59,233.53,24.20150343]
[1732711231073,1.06757953,233.63,233.53,24.20150343]
[1732711231252,8.46563379,233.6,233.53,24.20150343]
[1732711231437,8.46563379,233.58,233.53,24.20150343]
[1732711231635,8.46563379,233.58,233.53,0.42461943]
[1732711231836,0.5143397,233.65,233.56,8.46563379]
[1732711232045,8.46563379,233.63,233.57,24.20126788]
[1732711232465,8.46563379,233.63,233.57,28.48246788]
[1732711232767,8.46563379,233.61,233.56,23.776884]
[1732711232966,8.46563379,233.59,233.56,23.776884]
[1732711233547,8.46563379,233.59,233.53,4.2819]
[1732711233777,8.46563379,233.59,233.53,24.2819]
[1732711234071,1.06759893,233.63,233.5,0.42468409]
[1732711234072,8.46563379,233.57,233.5,0.42468409]
[1732711234256,8.46563379,233.57,233.5,20.0]
[1732711234442,1.06759893,233.63,233.51,20.0]
[1732711234643,13.21731412,233.57,233.51,20.0]
[1732711235647,13.21731412,233.57,233.52,20.0]
[1732711237853,13.21731412,233.57,233.52,24.2822]
[1732711238664,13.21731412,233.57,233.52,20.0]
[1732711238867,13.21731412,233.55,233.48,2.45332989]
[1732711239116,13.21731412,233.53,233.47,4.2832]
[1732711240254,13.21731412,233.53,233.47,24.2832]
[1732711241470,13.21731412,233.53,233.48,20.0]
[1732711241777,13.21731412,233.53,233.48,24.2828]
[1732711242676,13.21731412,233.55,233.48,24.2828]
[1732711242881,13.21731412,233.55,233.48,24.70784513]
[1732711243858,13.21731412,233.55,233.48,24.2828]
[1732711244554,13.21731412,233.57,233.49,23.776884]
[1732711244755,13.21731412,233.57,233.5,0.4250141]
[1732711245964,13.21731412,233.57,233.51,4.2824]
[1732711246383,13.21731412,233.59,233.52,24.20168099]
[1732711247988,13.21731412,233.59,233.53,4.2821]
[1732711248177,13.21731412,233.57,233.52,4.2822]
[1732711249262,13.21731412,233.57,233.51,4.2824]
[1732711249463,13.21731412,233.57,233.52,23.776884]
[1732711250365,13.21731412,233.57,233.5,28.059484]
[1732711250968,13.21731412,233.57,233.51,0.42478612]
[1732711251587,13.21731412,233.57,233.52,4.2822]
[1732711253794,13.21731412,233.59,233.52,4.2822]
[1732711254295,13.21731412,233.59,233.53,24.20162058]
[1732711254496,13.21731412,233.61,233.53,37.4189347]
[1732711255470,13.21731412,233.61,233.55,23.776884]
[1732711255700,13.21731412,233.61,233.55,24.20134799]
[1732711256276,8.45586744,233.6,233.56,4.2815]
[1732711256674,1.58182826,233.65,233.56,4.2815]
[1732711256873,0.5143397,233.65,233.56,4.2815]
[1732711257073,8.45586744,233.64,233.57,24.20117114]
[1732711258476,8.45586744,233.64,233.58,4.2811]
[1732711260484,0.5143397,233.65,233.59,24.20107989]
[1732711261081,8.45586744,233.64,233.59,24.20107989]
[1732711261676,8.45586744,233.64,233.6,4.2808]
[1732711262077,0.5143397,233.65,233.6,4.2808]
[1732711262903,0.5143397,233.65,233.62,32.23275144]
[1732711263212,0.5143397,233.65,233.63,0.42360478]
[1732711263505,0.5143397,233.65,233.63,24.20048878]
[1732711263678,0.5143397,233.65,233.64,32.23275144]
[1732711263883,0.5143397,233.65,233.64,36.51275144]
[1732711264084,0.5143397,233.65,233.64,36.93621928]
[1732711265101,0.5143397,233.65,233.64,36.51275144]
[1732711265482,1e-08,233.65,233.64,36.51275144]
[1732711265682,1e-08,233.65,233.64,28.056884]
[1732711265903,1e-08,233.65,233.64,36.51275144]
[1732711268176,8.45586744,233.75,233.68,20.0]
[1732711268380,1.0668596,233.82,233.71,23.776884]
[1732711268604,1.0668596,233.82,233.7,20.0]
[1732711268605,8.45586744,233.76,233.7,20.0]
[1732711268804,8.45586744,233.76,233.7,24.2789]
[1732711269990,8.45586744,233.78,233.71,23.776884]
[1732711270813,1.0668013,233.83,233.72,8.45586744]
[1732711271112,8.45586744,233.84,233.76,8.45586744]
[1732711271307,8.45586744,233.84,233.77,0.42249977]
[1732711271486,1.58094576,233.89,233.77,0.42249977]
[1732711271690,8.45586744,233.84,233.77,0.42249977]
[1732711271891,8.45586744,233.82,233.75,23.776884]
[1732711272093,8.45586744,233.82,233.76,4.2778]
[1732711272295,1.06653306,233.87,233.76,4.2778]
[1732711272478,8.45586744,233.82,233.76,4.2778]
[1732711272681,1.06653306,233.87,233.76,4.2778]
[1732711272916,8.45586744,233.85,233.77,8.45586744]
[1732711273298,8.45586744,233.85,233.78,23.776884]
[1732711273924,0.5143397,233.89,233.81,8.45586744]
[1732711274098,8.97020714,233.89,233.82,4.2767]
[1732711274719,8.45586744,233.88,233.82,4.2767]
[1732711275034,8.45586744,233.88,233.8,10.93001848]
[1732711275337,8.45586744,233.88,233.81,12.73276744]
[1732711275825,0.5143397,233.89,233.83,8.45586744]
[1732711276017,0.5143397,233.89,233.84,8.8776985]
[1732711276226,0.5143397,233.89,233.85,23.776884]
[1732711276637,0.5143397,233.89,233.87,8.45586744]
[1732711276935,0.5143397,233.89,233.88,28.45586744]
[1732711277131,0.5143397,233.89,233.88,33.15309443]
[1732711277434,0.5143397,233.89,233.88,56.92997843]
[1732711277732,0.5143397,233.89,233.88,48.47411099]
[1732711277911,0.5143397,233.89,233.88,48.052484]
[1732711278532,0.5143397,233.89,233.88,61.22583055]
[1732711279904,0.5143397,233.89,233.85,13.17334655]
[1732711280131,0.5143397,233.89,233.86,24.276]
[1732711280329,0.5143397,233.89,233.87,23.776884]
[1732711281831,0.5143397,233.89,233.88,36.95023055]
[1732711283325,0.5143397,233.89,233.88,13.17334655]
[1732711283526,0.5143397,233.89,233.88,36.95023055]
[1732711283906,0.5143397,233.89,233.88,41.22583055]
[1732711285636,1.06581101,234.08,233.91,20.0]
[1732711285637,13.17334655,234.02,233.91,20.0]
[1732711285934,13.17334655,234.02,233.95,23.776884]
[1732711286612,13.17334655,234.02,233.95,28.051184]
[1732711286816,13.17334655,234.0,233.95,4.2743]
[1732711288032,13.17334655,234.0,233.94,4.2746]
[1732711288410,13.17334655,234.0,233.95,23.776884]
[1732711288930,13.17334655,234.0,233.94,4.2746]
[1732711289135,13.17334655,234.0,233.95,23.776884]
[1732711290127,13.17334655,234.0,233.94,4.2746]
[1732711290335,13.17334655,234.0,233.95,23.776884]
[1732711291028,13.17334655,233.97,233.93,20.0]
[1732711291616,13.17334655,233.97,233.93,23.776884]
[1732711292137,13.17334655,233.99,233.94,4.2746]
[1732711292709,13.17334655,234.01,233.94,4.2746]
[1732711293113,13.17334655,234.01,233.95,23.776884]
[1732711293616,13.17334655,234.01,233.94,4.2746]
[1732711293812,14.23906473,234.05,233.96,13.17334655]
[1732711294037,13.17334655,233.97,233.92,4.2748]
[1732711294541,13.17334655,233.95,233.86,14.9661]
[1732711294749,13.17334655,233.95,233.9,20.0]
[1732711294922,13.17334655,233.97,233.9,20.0]
[1732711295252,1.06601689,234.04,233.92,20.0]
[1732711295411,13.17334655,234.01,233.92,20.0]
[1732711295618,1.06581715,234.0,233.92,20.0]
[1732711295923,13.17334655,234.01,233.93,36.95023055]